bitfinex/quotes_BTCUSD_20250616
["timestamp","ask_amount","ask_price","bid_price","bid_amount"]
[1750093796592,7.296846,107790.0,107780.0,0.27498]
[1750093797035,7.296846,107790.0,107780.0,0.23578]
[1750093797247,7.296846,107790.0,107780.0,0.27498]
[1750093797463,7.296846,107790.0,107780.0,0.23578]
[1750093797694,7.296846,107790.0,107780.0,0.27498]
[1750093798579,7.296766,107790.0,107780.0,0.27498]
[1750093798801,6.52165116,107790.0,107780.0,0.27498]
[1750093799024,6.48461739,107790.0,107780.0,0.2783]
[1750093799257,5.59398642,107790.0,107780.0,0.2783]
[1750093799478,6.26824204,107790.0,107780.0,0.2783]
[1750093799696,6.24599027,107790.0,107780.0,0.2783]
[1750093800191,6.58599027,107790.0,107780.0,0.2783]
[1750093801736,6.60821267,107790.0,107780.0,0.2783]
[1750093804621,6.60821267,107790.0,107780.0,0.2391]
[1750093804834,6.60821267,107790.0,107780.0,0.2783]
[1750093805491,6.42266671,107790.0,107780.0,0.2783]
[1750093808198,6.42266671,107790.0,107780.0,0.2391]
[1750093808413,6.27126671,107790.0,107780.0,0.2783]
[1750093808625,6.42266671,107790.0,107780.0,0.2783]
[1750093809566,6.41338959,107790.0,107780.0,0.2783]
[1750093811287,6.41338959,107790.0,107780.0,0.2391]
[1750093811531,0.31488949,107790.0,107780.0,0.80515562]
[1750093811742,0.27653493,107790.0,107780.0,0.80515562]
[1750093811978,0.27653493,107790.0,107780.0,0.76595562]
[1750093812199,0.24864893,107790.0,107780.0,0.80515562]
[1750093813064,0.24864893,107790.0,107780.0,0.76595562]
[1750093813281,0.24864893,107790.0,107780.0,0.2823]
[1750093814288,0.24864893,107790.0,107780.0,0.2391]
[1750093814498,0.24864893,107790.0,107780.0,0.2823]
[1750093815470,0.78322487,107790.0,107780.0,0.2823]
[1750093815703,0.24864893,107790.0,107780.0,0.2823]
[1750093815936,0.09728893,107790.0,107780.0,0.2823]
[1750093816166,0.09728893,107790.0,107780.0,0.80515562]
[1750093816416,0.24872893,107790.0,107780.0,0.80515562]
[1750093817699,0.24872893,107790.0,107780.0,0.2823]
[1750093818182,0.00104717,107790.0,107780.0,0.81969647]
[1750093818627,0.00104717,107790.0,107780.0,1.15673965]
[1750093819516,0.00104717,107790.0,107780.0,1.17529501]
[1750093819729,0.02782629,107810.0,107800.0,0.18952875]
[1750093819952,0.02782629,107810.0,107800.0,0.22495875]
[1750093819953,0.64035239,107810.0,107800.0,0.22495875]
[1750093820185,0.79179239,107810.0,107800.0,0.22495875]
[1750093821947,0.79279239,107810.0,107800.0,0.22995875]
[1750093822163,0.64135239,107810.0,107800.0,0.23923518]
[1750093822388,0.79275239,107810.0,107800.0,0.25978779]
[1750093822611,0.09728901,107810.0,107800.0,0.80119533]
[1750093822830,0.00104725,107810.0,107800.0,0.81573618]
[1750093823113,0.01032205,107810.0,107800.0,0.81573618]
[1750093823536,0.01959702,107810.0,107800.0,0.81573618]
[1750093823757,0.02887225,107810.0,107800.0,0.85493618]
[1750093823971,0.02887216,107810.0,107800.0,0.84039533]
[1750093824198,0.01959702,107810.0,107800.0,0.85493618]
[1750093824419,0.01959702,107810.0,107800.0,0.33208056]
[1750093824646,0.01032205,107810.0,107800.0,0.85493618]
[1750093824864,0.01959702,107810.0,107800.0,0.85493618]
[1750093825075,0.01959711,107810.0,107800.0,0.85493618]
[1750093825830,0.01959702,107810.0,107800.0,0.85493618]
[1750093826708,0.01032205,107810.0,107800.0,0.85493618]
[1750093826956,0.00104725,107810.0,107800.0,0.85493618]
[1750093827186,0.73623156,107840.0,107820.0,0.23994334]
[1750093827187,0.01854624,107830.0,107820.0,0.23994334]
[1750093827412,0.114788,107830.0,107820.0,1.01184307]
[1750093827639,0.01859211,107840.0,107830.0,0.25302775]
[1750093827883,0.12410652,107840.0,107830.0,0.77588345]
[1750093828168,0.31883937,107840.0,107830.0,0.2736809]
[1750093828403,0.31883937,107840.0,107830.0,0.28295449]
[1750093828674,0.31883937,107840.0,107830.0,0.28295458]
[1750093828955,0.82315013,107840.0,107830.0,0.0744]
[1750093829211,0.82315013,107840.0,107830.0,0.0352]
[1750093829442,0.82515013,107840.0,107830.0,0.0744]
[1750093829911,0.82515013,107840.0,107830.0,0.0754]
[1750093830460,0.82315013,107840.0,107830.0,0.0754]
[1750093830899,0.82515013,107840.0,107830.0,0.0754]
[1750093834574,6.31129935,107840.0,107830.0,0.0322]
[1750093834817,6.22008013,107840.0,107830.0,0.0714]
[1750093835680,6.21515013,107840.0,107830.0,0.0754]
[1750093835893,6.36651013,107840.0,107830.0,0.0754]
[1750093837932,6.39437713,107840.0,107830.0,0.0754]
[1750093838188,6.39930713,107840.0,107830.0,0.0754]
[1750093838512,5.72016151,107840.0,107830.0,0.26087713]
[1750093838772,0.4629275,107840.0,107830.0,0.26542713]
[1750093839275,0.3115675,107840.0,107830.0,0.26542713]
[1750093839535,0.26819491,107840.0,107830.0,0.07995]
[1750093840214,0.26819491,107840.0,107830.0,0.08922368]
[1750093840435,0.26819491,107840.0,107830.0,0.09849745]
[1750093840722,0.26819491,107840.0,107830.0,0.08922377]
[1750093840920,0.26819491,107840.0,107830.0,0.07995]
[1750093841345,0.11683491,107840.0,107830.0,0.07995]
[1750093841560,0.26811491,107840.0,107830.0,0.07995]
[1750093841770,0.26811491,107840.0,107830.0,0.08922385]
[1750093842780,0.26811491,107840.0,107830.0,0.09849762]
[1750093843859,0.26811491,107840.0,107830.0,0.08922385]
[1750093844298,0.26811491,107840.0,107830.0,0.09849762]
[1750093844517,0.09828901,107840.0,107830.0,0.07995]
[1750093844740,0.09828901,107840.0,107830.0,0.60280562]
[1750093844961,0.09828901,107840.0,107830.0,0.07995]
[1750093846329,0.62114463,107840.0,107830.0,0.0362]
[1750093846525,0.62607463,107840.0,107830.0,0.0362]
[1750093846729,0.62607463,107840.0,107830.0,0.07536]
[1750093848014,0.62114463,107840.0,107830.0,0.07536]
[1750093849119,0.62114463,107840.0,107830.0,0.07485712]
[1750093849324,0.09828901,107840.0,107830.0,0.07485712]
[1750093850888,0.62114463,107840.0,107830.0,0.07485712]
[1750093851521,0.6433641,107840.0,107830.0,0.07485712]
[1750093853861,0.6482941,107840.0,107830.0,0.07485712]
[1750093854810,0.6433641,107840.0,107830.0,0.03569712]
[1750093855028,5.6982941,107840.0,107830.0,0.07485712]
[1750093856422,5.88375404,107840.0,107830.0,0.07485712]
[1750093858447,0.45716842,107840.0,107830.0,0.26387425]
[1750093860789,0.29021404,107840.0,107830.0,0.28242169]
[1750093861014,0.28653943,107840.0,107830.0,0.30096862]
[1750093861218,0.28653943,107840.0,107830.0,0.2916952]
[1750093861649,0.12610652,107840.0,107830.0,0.31024187]
[1750093861873,0.12610636,107840.0,107830.0,0.83309749]
[1750093862079,0.11683371,107840.0,107830.0,0.83309749]
[1750093862499,0.11683362,107840.0,107830.0,0.83309749]
[1750093862734,0.00204725,107840.0,107830.0,0.84763834]
[1750093864494,0.00204725,107840.0,107830.0,0.84663834]
[1750093865242,4.725e-05,107840.0,107830.0,0.84663834]
[1750093865457,4.725e-05,107840.0,107830.0,0.84863834]
[1750093865921,4.725e-05,107840.0,107830.0,0.85063834]
[1750093867484,4.725e-05,107840.0,107830.0,1.00179834]
[1750093867702,0.00931947,107840.0,107830.0,1.00179834]
[1750093868144,4.725e-05,107840.0,107830.0,1.00179834]
[1750093877756,4.725e-05,107840.0,107830.0,1.0980401]
[1750093877974,4.725e-05,107840.0,107830.0,1.4380401]
[1750093878245,4.725e-05,107840.0,107830.0,1.4340401]
[1750093878486,0.1580697,107860.0,107850.0,0.25344811]
[1750093878713,0.15811694,107860.0,107850.0,0.92746373]
[1750093879796,0.15811694,107860.0,107850.0,1.45031935]
[1750093879998,0.15811694,107860.0,107850.0,1.46131003]
[1750093880116,0.15811694,107860.0,107850.0,0.93845441]
[1750093880338,0.15811694,107860.0,107850.0,0.77630373]
[1750093880538,0.15811694,107860.0,107850.0,0.96654373]
[1750093881170,0.15811694,107860.0,107850.0,1.48939935]
[1750093881632,0.15811694,107860.0,107850.0,1.49039935]
[1750093882074,0.15811694,107860.0,107850.0,1.49139935]
[1750093882251,0.15811694,107860.0,107850.0,0.96854373]
[1750093882605,0.15811694,107860.0,107850.0,1.50253128]
[1750093885688,0.15811694,107860.0,107850.0,1.31229128]
[1750093886146,0.15811694,107860.0,107850.0,1.50249128]
[1750093886558,0.15811694,107860.0,107850.0,1.50149128]
[1750093886772,0.15811694,107860.0,107850.0,1.51603213]
[1750093886973,0.15811694,107860.0,107850.0,1.51803213]
[1750093887187,0.15811694,107860.0,107850.0,1.52103213]
[1750093889965,0.15811694,107860.0,107850.0,1.33083213]
[1750093890177,0.15811694,107860.0,107850.0,0.99817651]
[1750093891272,0.15811694,107860.0,107850.0,0.77830126]
[1750093891494,0.18592964,107860.0,107850.0,0.25475871]
[1750093891737,0.38062646,107860.0,107850.0,0.44495871]
[1750093891964,0.45832662,107860.0,107850.0,0.0415]
[1750093892183,0.45363552,107860.0,107850.0,0.245]
[1750093892842,0.45363552,107860.0,107850.0,0.242]
[1750093893092,0.45363552,107860.0,107850.0,0.24]
[1750093893306,0.45363552,107860.0,107850.0,0.241]
[1750093894625,0.97649114,107860.0,107850.0,0.20192]
[1750093894840,0.97649114,107860.0,107850.0,0.241]
[1750093896208,0.97649114,107860.0,107850.0,0.20192]
[1750093896411,6.91425096,107860.0,107850.0,0.19792]
[1750093896613,7.10192708,107860.0,107850.0,0.237]
[1750093896772,7.12111725,107860.0,107850.0,0.237]
[1750093896975,6.59826163,107860.0,107850.0,0.237]
[1750093897225,6.69441085,107860.0,107850.0,0.237]
[1750093898221,6.57045934,107860.0,107850.0,0.237]
[1750093901556,7.06375934,107860.0,107850.0,0.237]
[1750093902831,7.58661496,107860.0,107850.0,0.237]
[1750093903521,7.06375934,107860.0,107850.0,0.237]
[1750093908421,6.90985934,107860.0,107850.0,0.237]
[1750093908614,5.99235552,107860.0,107850.0,0.2686]
[1750093908855,5.99235552,107860.0,107850.0,0.27741]
[1750093908856,0.94235552,107860.0,107850.0,0.27741]
[1750093909305,1.43355552,107860.0,107850.0,0.27741]
[1750093910418,1.43351552,107860.0,107850.0,0.27741]
[1750093911980,1.95637114,107860.0,107850.0,0.2726]
[1750093912202,1.96095114,107860.0,107850.0,0.2726]
[1750093914814,1.28693552,107860.0,107850.0,0.2726]
[1750093915025,1.43351552,107860.0,107850.0,0.2726]
[1750093915242,1.43351552,107860.0,107850.0,0.27562]
[1750093918443,0.94235552,107860.0,107850.0,0.46285274]
[1750093918662,1.09351552,107860.0,107850.0,0.27741]
[1750093919512,0.60021552,107860.0,107850.0,0.27741]
[1750093923678,0.60021552,107860.0,107850.0,0.2726]
[1750093924406,1.12307114,107860.0,107850.0,0.2726]
[1750093925298,1.21922036,107860.0,107850.0,0.002]
[1750093925519,1.31662114,107860.0,107850.0,0.04108]
[1750093925759,6.53999032,107860.0,107850.0,0.04108]
[1750093926226,6.53999032,107860.0,107850.0,0.05718]
[1750093926518,6.53999032,107860.0,107850.0,0.04108]
[1750093927041,6.38883032,107860.0,107850.0,0.002]
[1750093927304,6.38883032,107860.0,107850.0,0.04108]
[1750093927305,6.63879954,107860.0,107850.0,0.04108]
[1750093927589,6.66660183,107860.0,107850.0,0.04108]
[1750093927870,6.63879954,107860.0,107850.0,0.04108]
[1750093928127,6.53995032,107860.0,107850.0,0.002]
[1750093928362,6.53995032,107860.0,107850.0,0.04108]
[1750093931261,7.03325032,107860.0,107850.0,0.04108]
[1750093932680,6.5103947,107860.0,107850.0,0.04108]
[1750093932904,7.03325032,107860.0,107850.0,0.04108]
[1750093933592,7.08982385,107860.0,107850.0,0.04108]
[1750093934288,7.08982385,107860.0,107850.0,0.002]
[1750093934511,7.03325032,107860.0,107850.0,0.04108]
[1750093936432,7.55610594,107860.0,107850.0,0.002]
[1750093936640,7.58660823,107860.0,107850.0,0.002]
[1750093936843,7.61447423,107860.0,107850.0,0.04108]
[1750093937056,7.71062345,107860.0,107850.0,0.002]
[1750093937258,7.71062345,107860.0,107850.0,0.04108]
[1750093938794,7.61447423,107860.0,107850.0,0.04108]
[1750093938986,7.09161861,107860.0,107850.0,0.04108]
[1750093939146,6.93779861,107860.0,107850.0,0.07118]
[1750093939368,6.3545647,107860.0,107850.0,0.07118]
[1750093939570,7.02858032,107860.0,107850.0,0.07982]
[1750093941549,0.8112647,107860.0,107850.0,0.07982]
[1750093941754,0.94021552,107860.0,107850.0,0.07982]
[1750093942377,0.60021552,107860.0,107850.0,0.07982]
[1750093942593,0.94021552,107860.0,107850.0,0.07982]
[1750093942807,0.78905552,107860.0,107850.0,0.07982]
[1750093943015,0.60021552,107860.0,107850.0,0.27453479]
[1750093943223,0.44905552,107860.0,107850.0,0.27453479]
[1750093943429,0.59094425,107860.0,107850.0,0.26526274]
[1750093943840,0.59094425,107860.0,107850.0,0.07982]
[1750093944125,0.93094425,107860.0,107850.0,0.07982]
[1750093947389,0.93090425,107860.0,107850.0,0.26526274]
[1750093947631,0.93090425,107860.0,107850.0,0.27453487]
[1750093947839,0.93090425,107860.0,107850.0,0.29307888]
[1750093948278,0.93090425,107860.0,107850.0,0.28380692]
[1750093948552,0.43978425,107860.0,107850.0,0.81593433]
[1750093948784,0.60017535,107860.0,107850.0,0.82520637]
[1750093949022,0.43329183,107860.0,107850.0,0.83447765]
[1750093949252,0.17665819,107860.0,107850.0,0.84901798]
[1750093949494,0.16738744,107860.0,107850.0,0.84901798]
[1750093950220,0.15811694,107860.0,107850.0,0.84901798]
[1750093950462,0.16738752,107860.0,107850.0,0.84901798]
[1750093951381,0.15811694,107860.0,107850.0,0.84901798]
[1750093951619,0.16738752,107860.0,107850.0,0.84901798]
[1750093952288,0.15811694,107860.0,107850.0,0.84901798]
[1750093952516,0.16738744,107860.0,107850.0,0.84901798]
[1750093954572,0.16738744,107860.0,107850.0,0.85969973]
[1750093955458,0.17665811,107860.0,107850.0,0.85969973]
[1750093955687,0.18592904,107860.0,107850.0,1.00013798]
[1750093955913,0.19520014,107860.0,107850.0,1.00013798]
[1750093956132,0.18592904,107860.0,107850.0,1.00013798]
[1750093956357,0.18592895,107860.0,107850.0,1.00013798]
[1750093956971,0.16738744,107860.0,107850.0,1.00013798]
[1750093957202,0.17665811,107860.0,107850.0,1.00013798]
[1750093957656,0.18592895,107860.0,107850.0,1.01059638]
[1750093957873,0.18592887,107860.0,107850.0,1.01059638]
[1750093958086,0.17665811,107860.0,107850.0,1.01059638]
[1750093960293,0.18592904,107860.0,107850.0,1.00013798]
[1750093960528,0.17665811,107860.0,107850.0,1.00013798]
[1750093961163,0.18592887,107860.0,107850.0,1.00013798]
[1750093961489,0.17665811,107860.0,107850.0,1.01107848]
[1750093962450,0.18592895,107860.0,107850.0,1.01107848]
[1750093962654,0.17665811,107860.0,107850.0,1.01107848]
[1750093962864,0.18592895,107860.0,107850.0,1.00013798]
[1750093963290,0.17665811,107860.0,107850.0,1.00013798]
[1750093965716,0.16738744,107860.0,107850.0,1.00013798]
[1750093965941,0.15811694,107860.0,107850.0,1.00013798]
[1750093966157,0.16738752,107860.0,107850.0,1.00013798]
[1750093966589,0.15811694,107860.0,107850.0,1.00013798]
[1750093966799,0.16738752,107860.0,107850.0,1.00013798]
[1750093967241,0.17665828,107860.0,107850.0,1.00013798]
[1750093967477,0.16738752,107860.0,107850.0,1.00013798]
[1750093967732,0.17665819,107860.0,107850.0,1.00013798]
[1750093968018,0.16738752,107860.0,107850.0,1.00013798]
[1750093968262,0.15811694,107860.0,107850.0,1.00013798]
[1750093969384,0.16738744,107860.0,107850.0,1.00013798]
[1750093970229,0.18592886,107860.0,107850.0,0.47720236]
[1750093970480,0.20519945,107860.0,107850.0,1.00005798]
[1750093970747,0.20519945,107860.0,107850.0,0.47720236]
[1750093971010,0.19592869,107860.0,107850.0,1.00005798]
[1750093972135,0.19592869,107860.0,107850.0,0.47720236]
[1750093972391,0.17738744,107860.0,107850.0,1.00005798]
[1750093972879,0.1866582,107860.0,107850.0,1.00005798]
[1750093973380,0.19592921,107860.0,107850.0,1.00005798]
[1750093973648,0.38135468,107860.0,107850.0,0.25462742]
[1750093973904,0.47329628,107860.0,107850.0,0.27106]
[1750093974162,1.13796097,107860.0,107850.0,0.27106]
[1750093974423,1.13796097,107860.0,107850.0,0.23202]
[1750093974693,1.48066097,107860.0,107850.0,0.20192]
[1750093974961,6.53066097,107860.0,107850.0,0.24096]
[1750093975495,6.55289292,107860.0,107850.0,0.24096]
[1750093978485,6.40181292,107860.0,107850.0,0.19792]
[1750093978701,6.53066097,107860.0,107850.0,0.22196]
[1750093978908,6.55287639,107860.0,107850.0,0.22196]
[1750093979349,7.17188123,107860.0,107850.0,0.22196]
[1750093979806,6.64902561,107860.0,107850.0,0.22196]
[1750093980260,7.17188123,107860.0,107850.0,0.22196]
[1750093980479,6.64902561,107860.0,107850.0,0.22196]
[1750093981430,6.55287639,107860.0,107850.0,0.22196]
[1750093982551,5.87894077,107860.0,107850.0,0.22196]
[1750093982799,6.39909639,107860.0,107850.0,0.22196]
[1750093983003,6.55017639,107860.0,107850.0,0.22196]
[1750093985083,6.57804039,107860.0,107850.0,0.22196]
[1750093985600,6.67418961,107860.0,107850.0,0.22196]
[1750093986537,6.67685452,107860.0,107850.0,0.22196]
[1750093988177,7.19971014,107860.0,107850.0,0.22196]
[1750093988617,7.22743866,107860.0,107850.0,0.22196]
[1750093989322,7.07635866,107860.0,107850.0,0.22196]
[1750093989526,7.22743866,107860.0,107850.0,0.22196]
[1750093989959,7.23343866,107860.0,107850.0,0.22196]
[1750093990187,6.52577452,107860.0,107850.0,0.18292]
[1750093990412,6.67685452,107860.0,107850.0,0.22196]
[1750093990636,6.67985452,107860.0,107850.0,0.22196]
[1750093990869,6.68785452,107860.0,107850.0,0.22196]
[1750093991119,6.67985452,107860.0,107850.0,0.22196]
[1750093991329,6.68585452,107860.0,107850.0,0.22196]
[1750093992704,7.20871014,107860.0,107850.0,0.22196]
[1750093993358,7.70201014,107860.0,107850.0,0.22196]
[1750093994663,7.17915452,107860.0,107850.0,0.22196]
[1750093995468,7.70201014,107860.0,107850.0,0.22196]
[1750093995723,7.72973866,107860.0,107850.0,0.22196]
[1750093995992,7.73840479,107860.0,107850.0,0.22196]
[1750093996393,7.73840482,107860.0,107850.0,0.22196]
[1750093999775,7.73840697,107860.0,107850.0,0.22196]
[1750094000604,7.73840702,107860.0,107850.0,0.22196]
[1750094001015,7.75574998,107860.0,107850.0,0.22196]
[1750094001663,7.73840702,107860.0,107850.0,0.22196]
[1750094001918,7.77545666,107860.0,107850.0,0.22196]
[1750094002132,7.82062757,107860.0,107850.0,0.22196]
[1750094002353,7.84411878,107860.0,107850.0,0.22196]
[1750094002581,7.81810699,107860.0,107850.0,0.22196]
[1750094002790,7.77210699,107860.0,107850.0,0.22196]
[1750094003003,7.81810699,107860.0,107850.0,0.22196]
[1750094004249,6.77239575,107860.0,107850.0,0.22196]
[1750094004462,7.81810699,107860.0,107850.0,0.22196]
[1750094005199,7.32480699,107860.0,107850.0,0.22196]
[1750094005858,7.32480699,107860.0,107850.0,0.20444]
[1750094006420,7.32480699,107860.0,107850.0,0.16229]
[1750094006633,7.32480699,107860.0,107850.0,0.03904]
[1750094007062,7.03157777,107860.0,107850.0,0.03904]
[1750094007279,7.14689422,107860.0,107850.0,0.07144]
[1750094008415,6.4729586,107860.0,107850.0,0.07144]
[1750094008645,6.6240386,107860.0,107850.0,0.07144]
[1750094009467,7.14689422,107860.0,107850.0,0.07144]
[1750094009878,6.72018782,107860.0,107850.0,0.07144]
[1750094010381,6.71018782,107860.0,107850.0,0.06144]
[1750094010663,7.23304344,107860.0,107850.0,0.06144]
[1750094011580,7.23304344,107860.0,107850.0,0.04544]
[1750094011797,7.23304344,107860.0,107850.0,0.02904]
[1750094013392,7.23304344,107860.0,107850.0,0.06054]
[1750094014694,7.17382981,107860.0,107850.0,0.06054]
[1750094016730,0.48591883,107860.0,107850.0,0.06054]
[1750094017005,0.46732619,107860.0,107850.0,0.78513041]
[1750094017238,0.47659746,107860.0,107850.0,0.79440237]
[1750094017449,0.96763746,107860.0,107850.0,0.28081862]
[1750094017669,0.96763746,107860.0,107850.0,0.29009041]
[1750094017879,0.81659746,107860.0,107850.0,0.29009041]
[1750094018104,0.96763746,107860.0,107850.0,0.29009041]
[1750094018793,0.95536662,107860.0,107850.0,0.28081862]
[1750094019787,0.94936662,107860.0,107850.0,0.28181862]
[1750094019987,0.94009552,107860.0,107850.0,0.27254675]
[1750094020401,0.94009552,107860.0,107850.0,0.27354675]
[1750094020610,0.93082425,107860.0,107850.0,0.26327479]
[1750094020873,0.93082425,107860.0,107850.0,0.27554675]
[1750094021226,0.93082425,107860.0,107850.0,0.28481862]
[1750094022599,0.93082425,107860.0,107850.0,0.27554675]
[1750094023016,0.93082425,107860.0,107850.0,0.26627479]
[1750094023836,0.93082425,107860.0,107850.0,0.08083213]
[1750094024773,0.93082425,107860.0,107850.0,0.07156]
[1750094025076,0.93082425,107860.0,107850.0,0.04252]
[1750094025310,0.93082425,107860.0,107850.0,0.08156]
[1750094026157,0.93082425,107860.0,107850.0,0.26700274]
[1750094026366,0.93082425,107860.0,107850.0,0.27627487]
[1750094026768,0.7453987,107860.0,107850.0,0.30409024]
[1750094027001,0.94936637,107860.0,107850.0,0.30409024]
[1750094027223,0.28217131,107860.0,107850.0,0.30409024]
[1750094027447,0.43317131,107860.0,107850.0,0.30409024]
[1750094027662,0.27290021,107860.0,107850.0,0.82694586]
[1750094027870,0.2729003,107860.0,107850.0,0.82694586]
[1750094028302,0.15811694,107860.0,107850.0,0.84148671]
[1750094028514,0.16738752,107860.0,107850.0,0.84148671]
[1750094028718,0.15811694,107860.0,107850.0,0.84148671]
[1750094028936,0.16738744,107860.0,107850.0,0.84148671]
[1750094030517,0.15811694,107860.0,107850.0,0.84148671]
[1750094031207,0.17876737,107880.0,107870.0,0.24881857]
[1750094031424,0.27500913,107880.0,107870.0,0.44950857]
[1750094031631,0.2842786,107880.0,107870.0,0.48846857]
[1750094032079,0.27500913,107880.0,107870.0,0.48846857]
[1750094032306,0.2842786,107880.0,107870.0,0.48846857]
[1750094032531,0.12604905,107880.0,107870.0,0.48846857]
[1750094032756,0.002,107880.0,107870.0,1.02586504]
[1750094033215,0.002,107880.0,107870.0,1.17682504]
[1750094033668,0.00304724,107880.0,107870.0,1.17682504]
[1750094033893,0.00204724,107880.0,107870.0,1.17682504]
[1750094034115,0.21315946,107900.0,107890.0,0.23961112]
[1750094034328,0.3187163,107900.0,107890.0,0.24278112]
[1750094034960,0.30944898,107900.0,107890.0,0.29100947]
[1750094035379,0.3011814,107900.0,107890.0,0.24278112]
[1750094035556,0.29191365,107900.0,107890.0,0.28174112]
[1750094035770,0.29391365,107900.0,107890.0,0.28174112]
[1750094036559,0.44487365,107900.0,107890.0,0.28174112]
[1750094036979,0.099289,107900.0,107890.0,0.30027756]
[1750094037295,0.099289,107900.0,107890.0,0.83767403]
[1750094037296,0.00304724,107900.0,107890.0,0.83767403]
[1750094037510,0.00304724,107900.0,107890.0,0.98859403]
[1750094037946,0.00104724,107900.0,107890.0,0.98859403]
[1750094038180,4.724e-05,107900.0,107890.0,0.98859403]
[1750094038392,0.01853103,107920.0,107910.0,0.26791038]
[1750094038632,0.01853103,107920.0,107910.0,0.45779038]
[1750094038833,0.01853103,107920.0,107910.0,0.30687038]
[1750094039042,0.0277968,107920.0,107910.0,0.30687038]
[1750094039254,0.55317826,107930.0,107920.0,0.2202541]
[1750094039458,0.64942002,107930.0,107920.0,0.42775841]
[1750094039886,0.64942002,107930.0,107920.0,0.43702427]
[1750094040510,0.65142002,107930.0,107920.0,0.41849246]
[1750094040724,0.6401551,107930.0,107920.0,0.41849246]
[1750094040938,0.63088993,107930.0,107920.0,0.27213]
[1750094041354,1.15374555,107930.0,107920.0,0.27609]
[1750094041773,1.15374555,107930.0,107920.0,0.23713]
[1750094042227,1.15374555,107930.0,107920.0,0.27609]
[1750094042852,1.30466555,107930.0,107920.0,0.27609]
[1750094043267,1.30466555,107930.0,107920.0,0.23713]
[1750094043479,0.78180993,107930.0,107920.0,0.27609]
[1750094043690,1.30466555,107930.0,107920.0,0.27609]
[1750094044310,1.30466555,107930.0,107920.0,0.23713]
[1750094044513,1.30466555,107930.0,107920.0,0.27609]
[1750094045407,0.78180993,107930.0,107920.0,0.27609]
[1750094045619,1.30466555,107930.0,107920.0,0.27609]
[1750094045825,0.78180993,107930.0,107920.0,0.27609]
[1750094046938,0.78180993,107930.0,107920.0,0.46141246]
[1750094047525,0.77254467,107930.0,107920.0,0.27609]
[1750094048604,1.29540029,107930.0,107920.0,0.27609]
[1750094049373,1.29540029,107930.0,107920.0,0.23713]
[1750094049588,1.29540029,107930.0,107920.0,0.27609]
[1750094050186,0.77254467,107930.0,107920.0,0.27609]
[1750094051586,1.29540029,107930.0,107920.0,0.27609]
[1750094052244,0.77254467,107930.0,107920.0,0.46141246]
[1750094052506,0.77254467,107930.0,107920.0,0.47067858]
[1750094053132,0.77254467,107930.0,107920.0,0.27609]
[1750094054307,0.95785946,107930.0,107920.0,0.46141246]
[1750094054516,1.29540029,107930.0,107920.0,0.46141246]
[1750094054717,1.3040318,107930.0,107920.0,0.27609]
[1750094055063,0.78117618,107930.0,107920.0,0.27609]
[1750094055271,0.78117618,107930.0,107920.0,0.46141246]
[1750094055472,0.78117618,107930.0,107920.0,0.47067858]
[1750094056469,0.63025618,107930.0,107920.0,0.47994444]
[1750094056688,0.78109618,107930.0,107920.0,0.47994453]
[1750094057085,0.78109618,107930.0,107920.0,0.47067858]
[1750094057509,0.78109618,107930.0,107920.0,0.24639612]
[1750094057719,0.78109618,107930.0,107920.0,0.27609]
[1750094058348,0.78109618,107930.0,107920.0,0.27124]
[1750094058556,0.78109618,107930.0,107920.0,0.23228]
[1750094058780,1.3039518,107930.0,107920.0,0.27124]
[1750094059194,0.78109618,107930.0,107920.0,0.27417]
[1750094059393,1.3039518,107930.0,107920.0,0.27417]
[1750094060170,1.3039518,107930.0,107920.0,0.02]
[1750094060395,6.4135216,107930.0,107920.0,0.2348]
[1750094060612,6.4413656,107930.0,107920.0,0.2348]
[1750094060829,6.46898424,107930.0,107920.0,0.2388]
[1750094061048,6.4413656,107930.0,107920.0,0.2388]
[1750094061497,6.46898424,107930.0,107920.0,0.19984]
[1750094061723,6.4413656,107930.0,107920.0,0.23876]
[1750094062403,6.46898424,107930.0,107920.0,0.23876]
[1750094062613,6.46898424,107930.0,107920.0,0.23476]
[1750094063705,6.46898424,107930.0,107920.0,0.23876]
[1750094063920,6.46904171,107930.0,107920.0,0.23876]
[1750094064353,6.45384171,107930.0,107920.0,0.23876]
[1750094065224,6.45384717,107930.0,107920.0,0.23876]
[1750094065455,6.45384991,107930.0,107920.0,0.23876]
[1750094065910,6.50887477,107930.0,107920.0,0.23476]
[1750094066133,6.54300111,107930.0,107920.0,0.23476]
[1750094066360,6.50618079,107930.0,107920.0,0.23476]
[1750094067434,6.50618079,107930.0,107920.0,0.19584]
[1750094067655,0.54879188,107900.0,107890.0,0.21174]
[1750094067912,6.43240057,107900.0,107890.0,0.23476]
[1750094068127,6.43243132,107900.0,107890.0,0.23876]
[1750094068347,6.49456342,107900.0,107890.0,0.19584]
[1750094068552,6.59071264,107900.0,107890.0,0.23476]
[1750094068775,6.56294966,107900.0,107890.0,0.23476]
[1750094068997,6.59071264,107900.0,107890.0,0.23476]
[1750094069250,6.59072491,107900.0,107890.0,0.23476]
[1750094069481,6.59492491,107900.0,107890.0,0.23476]
[1750094069684,6.62238353,107900.0,107890.0,0.23476]
[1750094069894,6.61586718,107900.0,107890.0,0.23476]
[1750094070331,6.5891042,107900.0,107890.0,0.23476]
[1750094071219,6.5869042,107900.0,107890.0,0.23476]
[1750094072052,6.57817362,107900.0,107890.0,0.23476]
[1750094072292,6.58684102,107900.0,107890.0,0.23476]
[1750094073352,7.08014102,107900.0,107890.0,0.23476]
[1750094073590,7.05413881,107900.0,107890.0,0.23476]
[1750094074507,7.05413881,107900.0,107890.0,0.19584]
[1750094074722,7.05413881,107900.0,107890.0,0.23476]
[1750094076010,6.95798959,107900.0,107890.0,0.23476]
[1750094079586,6.79164959,107900.0,107890.0,0.23476]
[1750094079790,6.94248959,107900.0,107890.0,0.23476]
[1750094080412,6.94248959,107900.0,107890.0,0.25056]
[1750094083630,6.92034088,107900.0,107890.0,0.25056]
[1750094083835,7.03861791,107900.0,107890.0,0.25056]
[1750094084565,7.03861787,107900.0,107890.0,0.25056]
[1750094086432,7.05375787,107900.0,107890.0,0.19584]
[1750094086633,6.90291787,107900.0,107890.0,0.23476]
[1750094086860,7.03845787,107900.0,107890.0,0.23476]
[1750094087891,7.05415787,107900.0,107890.0,0.23476]
[1750094088102,7.6242811,107900.0,107890.0,0.23476]
[1750094088331,7.13098144,107900.0,107890.0,0.19584]
[1750094088546,7.17448835,107900.0,107890.0,0.23476]
[1750094088756,7.14672537,107900.0,107890.0,0.23476]
[1750094089179,6.99588537,107900.0,107890.0,0.23476]
[1750094089386,7.20228895,107900.0,107890.0,0.23476]
[1750094090391,7.20229387,107900.0,107890.0,0.23476]